fUSD/lending_fUSD_20240923
["ID","MTS","AMOUNT","RATE_DAILY","PERIOD"]
[338986139,1727100494464,-500.0,0.00012999,2]
[338986140,1727100494485,-500.0,0.00012999,2]
[338986141,1727100494507,-500.0,0.00012999,2]
[338986142,1727100494527,-342003.13154176,0.00012999,2]
[338986143,1727100494549,-1258.99,0.00012999,2]
[338986144,1727100494571,-1258.99,0.00012999,2]
[338986145,1727100494595,-1258.99,0.00012999,2]
[338986146,1727100494617,-1258.99,0.00012999,2]
[338986147,1727100494639,-1258.99,0.00012999,2]
[338986148,1727100494667,-1258.99,0.00012999,2]
[338986149,1727100494690,-1258.99,0.00012999,2]
[338986150,1727100494712,-1258.99,0.00012999,2]
[338986151,1727100494734,-1258.99,0.00012999,2]
[338986152,1727100494756,-1258.99,0.00012999,2]
[338986153,1727100494778,-1258.99,0.00012999,2]
[338986154,1727100494801,-1258.99,0.00012999,2]
[338986155,1727100494823,-1258.99,0.00012999,2]
[338986156,1727100494847,-1258.99,0.00012999,2]
[338986157,1727100494870,-1258.99,0.00012999,2]
[338986158,1727100494893,-1258.99,0.00012999,2]
[338986159,1727100494919,-1258.99,0.00012999,2]
[338986160,1727100494942,-1258.99,0.00012999,2]
[338986161,1727100494965,-1258.99,0.00012999,2]
[338986162,1727100494990,-1258.99,0.00012999,2]
[338986163,1727100495012,-1258.99,0.00012999,2]
[338986164,1727100495034,-1259.19744149,0.00012999,2]
[338986165,1727100495057,-500.0,0.00012999,2]
[338986166,1727100495079,-500.0,0.00012999,2]
[338986167,1727100495102,-503.80317,0.00012999,2]
[338986168,1727100495125,-596.43,0.00012999,2]
[338986169,1727100495147,-150.0,0.00012999,2]
[338986170,1727100495172,-150.0,0.00012999,2]
[338986171,1727100495195,-150.0,0.00012999,2]
[338986172,1727100495218,-180.54,0.00012999,2]
[338986173,1727100495239,-188.17230855,0.00012999,2]
[338986174,1727100495262,-500.0,0.00012999,2]
[338986175,1727100495286,-500.0,0.00012999,2]
[338986176,1727100495310,-500.0,0.00012999,2]
[338986177,1727100495332,-500.0,0.00012999,2]
[338986178,1727100495355,-250.0,0.00012999,2]
[338986179,1727100495377,-558.42681701,0.00012999,2]
[338986180,1727100495399,-490.31539658,0.00012999,2]
[338986181,1727100495424,-500.0,0.00012999,2]
[338986182,1727100495446,-500.0,0.00012999,2]
[338986183,1727100495467,-500.0,0.00012999,2]
[338986184,1727100495489,-500.0,0.00012999,2]
[338986185,1727100495512,-500.0,0.00012999,2]
[338986186,1727100495534,-500.0,0.00012999,2]
[338986187,1727100495555,-500.0,0.00012999,2]
[338986188,1727100495577,-284.35,0.00012999,2]
[338986189,1727100495598,-500.0,0.00012999,2]
[338986190,1727100495619,-318.07945422,0.00012999,2]
[338986191,1727100495642,-500.0,0.00012999,2]
[338986192,1727100495667,-500.0,0.00012999,2]
[338986193,1727100495688,-574.0,0.00013,2]
[338986194,1727100496765,5075.11754503,0.000129,2]
[338986195,1727100507561,-796577.69705138,0.00013,2]
[338986227,1727100547768,1989.84542445,0.00011,2]
[338986259,1727100569058,500.0,9.35e-05,2]
[338986262,1727100631670,-500.0,0.0001209,2]
[338986263,1727100631681,-209.68,0.00012112,2]
[338986264,1727100631690,-1417.52164622,0.00012253,2]
[338986275,1727100638580,-434.89835378,0.00012253,2]
[338986276,1727100638589,-250.0,0.00012253,2]
[338986277,1727100638599,-1000.0,0.000128,2]
[338986278,1727100638608,-155.58977246,0.000129,2]
[338986279,1727100638617,-325.35261186,0.000129,2]
[338986280,1727100638627,-3383.41169668,0.000129,2]
[338986281,1727100638636,-500.0,0.00012973,2]
[338986282,1727100638646,-57184.942121,0.00012997,2]
[338986283,1727100638655,-2047.9544827,0.00012997,2]
[338986284,1727100638664,-150.0,0.00012999,2]
[338986285,1727100638673,-12760.56767418,0.00013,2]
[338986286,1727100638687,-570.23685725,0.00013,2]
[338986287,1727100638698,-748.57520928,0.00013,2]
[338986288,1727100638709,-441.66001173,0.00013,2]
[338986289,1727100639133,-1089.05208853,0.00013,2]
[338986290,1727100639172,-746.48651101,0.00013,2]
[338986291,1727100639184,-1839.93992941,0.00013,2]
[338986292,1727100639195,-582.75405,0.00013,2]
[338986293,1727100639207,-262.14000012,0.00013,2]
[338986294,1727100639219,-1362.14790047,0.00013,2]
[338986295,1727100639230,-5001.8097,0.00013,2]
[338986296,1727100639321,-868.00078551,0.00013,2]
[338986297,1727100639332,-384.30158449,0.00013,2]
[338986319,1727100639675,-1178.46625176,0.00013,2]
[338986320,1727100639687,-5715.83687174,0.00013,2]
[338986321,1727100639789,-1309.97,0.00013,2]
[338986322,1727100639800,-353.59275053,0.00013,2]
[338986323,1727100639811,-566.84138598,0.00013,2]
[338986324,1727100639822,-4409.69574016,0.00013,2]
[338986325,1727100639833,-2447.98619997,0.00013,2]
[338986326,1727100639920,-1529.43690522,0.00013,2]
[338986394,1727100642717,-9956.95801704,0.00013,2]
[338986395,1727100642817,-403.92333797,0.00013,2]
[338986396,1727100642829,-7181.29969636,0.00013,2]
[338986397,1727100642840,-10852.61019446,0.00013,2]
[338986404,1727100644627,-19623.69323356,0.00013,2]
[338986405,1727100644639,-1439.85165886,0.00013,2]
[338986406,1727100644813,-5296.76582824,0.00013,2]
[338986407,1727100644870,422.35,0.00010959,2]
[338986408,1727100645697,-754.85459043,0.00012349,2]
[338986409,1727100645709,-17990.31761327,0.00012349,2]
[338986410,1727100645722,-2532.77544,0.00012349,2]
[338986411,1727100645734,-385.16520952,0.00012349,2]
[338986419,1727100648401,-2236.88714678,0.00012349,2]
[338986420,1727100648411,-9169.97555738,0.00013,2]
[338986421,1727100648423,-3453.00958133,0.00013,2]
[338986422,1727100648434,-912.85999773,0.00013,2]
[338986423,1727100648446,-1358.33273909,0.00013,2]
[338986424,1727100648457,-4561.76530792,0.00013,2]
[338986425,1727100671468,500.0,9.35e-05,2]
[338986426,1727100675537,651.08,0.00010959,2]
[338986427,1727100692060,500.0,9.35e-05,2]
[338986428,1727100717171,300.0,0.00010959,2]
[338986429,1727100746357,229.14,9.589e-05,2]
[338986432,1727101058113,487.71465106,0.0001,2]
[338986433,1727101069145,180.03582413,0.0001356,30]
[338986434,1727101077328,228.76,0.00010959,2]
[338986435,1727101087725,200.0,0.000125,14]
[338986436,1727101129717,600.0,8.628e-05,2]
[338986437,1727101131017,500.0,9.724e-05,2]
[338986438,1727101131326,600.0,9.998e-05,2]
[338986439,1727101140931,408.96,9.721e-05,2]
[338986440,1727101202600,150.61877191,9.721e-05,2]
[338986441,1727101340401,190.95,9.589e-05,2]
[338986442,1727101387716,173.5464133,0.00011101,2]
[338986443,1727101489631,5000.0,0.00011,2]
[338986462,1727101570171,5000.0,0.000111,2]
[338986473,1727101696310,1050.0,0.00011,2]
[338986497,1727101806493,388.51,9.396e-05,2]
[338986514,1727101831852,-170.51932731,0.00011168,2]
[338986515,1727101831863,-153.4900986,0.00011201,2]
[338986516,1727101831875,-250.0,0.00011291,2]
[338986517,1727101831889,-1021.08543538,0.00011304,2]
[338986518,1727101831900,-168.06456462,0.00011304,2]
[338986519,1727101831909,-2273.59,0.00011304,2]
[338986520,1727101831921,-577.03779184,0.00011304,2]
[338986521,1727101831934,-422.96220816,0.00011304,2]
[338986522,1727101831946,-158.13,0.00011314,2]
[338986523,1727101831959,-250.0,0.00011314,2]
[338986524,1727101831970,-500.0,0.00011314,2]
[338986525,1727101831980,-250.0,0.00011316,2]
[338986526,1727101831991,-500.0,0.00011316,3]
[338986527,1727101832002,-500.0,0.00011323,2]
[338986528,1727101832011,-600.0,0.00011368,2]
[338986529,1727101832023,-150.0,0.00011372,2]
[338986530,1727101832033,-471.22,0.00011372,2]
[338986531,1727101832042,-499.99,0.00011372,2]
[338986532,1727101832051,-5000.0,0.000115,2]
[338986533,1727101832061,-388.51,0.0001166,2]
[338986534,1727101832071,-150.0,0.00011687,2]
[338986535,1727101832081,-150.0,0.00011688,2]
[338986536,1727101832091,-150.0,0.00011688,2]
[338986537,1727101832100,-769.21,0.00011688,2]
[338986539,1727101832109,-159.76,0.00011688,2]
[338986541,1727101832118,-1303.67,0.00011688,2]
[338986543,1727101832129,-10732.24,0.00011688,2]
[338986545,1727101832139,-222.0,0.00011752,2]
[338986546,1727101832149,-5000.0,0.00012,2]
[338986547,1727101832159,-3600.0,0.00012024,2]
[338986548,1727101832169,-190.95,0.00012055,2]
[338986549,1727101832178,-152.48,0.00012443,2]
[338986550,1727101832187,-185.07,0.00012445,2]
[338986551,1727101832196,-167.1,0.00012445,2]
[338986552,1727101832205,-500.0,0.00012464,2]
[338986553,1727101832214,-5000.0,0.000125,2]
[338986554,1727101832224,-6000.0,0.00012594,3]
[338986555,1727101832233,-326.79310153,0.00012618,2]
[338986556,1727101832242,-1000.0,0.00012717,2]
[338986557,1727101832253,-600.0,0.00012738,2]
[338986558,1727101832262,-255.0,0.00012763,2]
[338986559,1727101832271,-2000.7346,0.00012799,2]
[338986560,1727101832281,-5742.517,0.000128,2]
[338986561,1727101832290,-500.0,0.000128,2]
[338986562,1727101832299,-226.0818,0.000128,2]
[338986563,1727101832487,-2988.96218679,0.000128,2]
[338986564,1727101832498,-330.9391,0.000128,2]
[338986565,1727101832507,-155.58977243,0.000128,2]
[338986566,1727101832517,-2968.11,0.00012805,2]
[338986567,1727101832525,-155.58977243,0.00012833,2]
[338986568,1727101832535,-155.58977243,0.00012867,2]
[338986569,1727101832544,-500.0,0.00012896,2]
[338986570,1727101832553,-256.88,0.00012896,2]
[338986571,1727101832563,-310.35504542,0.00012898,2]
[338986572,1727101832572,-431.05463102,0.00012899,2]
[338986573,1727101832581,-297.80251541,0.00012899,2]
[338986574,1727101832591,-339.84401184,0.00012899,2]
[338986575,1727101832601,-500.0,0.00012899,2]
[338986576,1727101832610,-500.0,0.00012899,2]
[338986577,1727101832620,-500.0,0.00012899,2]
[338986578,1727101832630,-500.0,0.00012899,2]
[338986579,1727101832640,-500.0,0.00012899,2]
[338986580,1727101832650,-500.0,0.00012899,2]
[338986581,1727101832659,-500.0,0.00012899,2]
[338986582,1727101832668,-500.0,0.00012899,2]
[338986583,1727101832678,-500.0,0.00012899,2]
[338986584,1727101832687,-500.0,0.00012899,2]
[338986585,1727101832696,-500.0,0.00012899,2]
[338986586,1727101832706,-154.62,0.00012899,2]
[338986587,1727101832715,-266.03,0.00012899,2]
[338986588,1727101832724,-500.0,0.00012899,2]
[338986589,1727101832733,-280.54762889,0.00012899,2]
[338986590,1727101832742,-218.68444647,0.00012899,2]
[338986591,1727101832752,-175.0,0.00012899,2]
[338986592,1727101832761,-500.0,0.00012899,2]
[338986593,1727101832770,-500.0,0.00012899,2]
[338986594,1727101832780,-500.0,0.00012899,2]
[338986595,1727101832789,-275.6553985,0.00012899,2]
[338986596,1727101832798,-644.37916321,0.00012899,2]
[338986597,1727101832807,-500.0,0.00012899,2]
[338986598,1727101832815,-500.0,0.00012899,2]
[338986599,1727101832824,-122.05706547,0.00012899,2]
[338986600,1727101832836,-377.94293453,0.00012899,2]
[338986601,1727101832846,-623.78,0.00012899,2]
[338986602,1727101832855,-500.0,0.00012899,2]
[338986603,1727101832864,-500.0,0.00012899,2]
[338986604,1727101832873,-281.24782531,0.00012899,2]
[338986605,1727101832887,-218.75217469,0.00012899,2]
[338986606,1727101832896,-500.0,0.00012899,2]
[338986607,1727101832905,-500.0,0.00012899,2]
[338986608,1727101832914,-500.0,0.00012899,2]
[338986609,1727101832923,-500.0,0.00012899,2]
[338986610,1727101832932,-500.0,0.00012899,2]
[338986611,1727101832941,-500.0,0.00012899,2]
[338986612,1727101832950,-500.0,0.00012899,2]
[338986613,1727101832962,-205.42238024,0.00012899,2]
[338986614,1727101832971,-500.0,0.00012899,2]
[338986615,1727101832980,-500.0,0.00012899,2]
[338986616,1727101832990,-357.75,0.00012899,2]
[338986617,1727101833000,-301.6,0.00012899,2]
[338986618,1727101833009,-219.71164384,0.00012899,2]
[338986619,1727101833018,-500.0,0.00012899,2]
[338986620,1727101833028,-2325.75,0.00012899,2]
[338986621,1727101833037,-1222.65,0.00012899,2]
[338986622,1727101833046,-500.0,0.00012899,2]
[338986623,1727101833055,-500.0,0.00012899,2]
[338986624,1727101833064,-364.42785256,0.00012899,2]
[338986625,1727101833073,-500.0,0.00012899,2]
[338986626,1727101833082,-500.0,0.00012899,2]
[338986627,1727101833091,-481.05296968,0.00012899,2]
[338986628,1727101833100,-500.0,0.00012899,2]
[338986629,1727101833109,-500.0,0.00012899,2]
[338986630,1727101833119,-500.0,0.00012899,2]
[338986631,1727101833128,-18490.31,0.00012899,2]
[338986632,1727101833137,-500.0,0.00012899,2]
[338986633,1727101833146,-500.0,0.00012899,2]
[338986634,1727101833155,-500.0,0.00012899,2]
[338986635,1727101833164,-500.0,0.00012899,2]
[338986636,1727101833174,-500.0,0.00012899,2]
[338986637,1727101833183,-500.0,0.00012899,2]
[338986638,1727101833193,-500.0,0.00012899,2]
[338986639,1727101833202,-500.0,0.00012899,2]
[338986640,1727101833211,-500.0,0.00012899,2]
[338986641,1727101833220,-908.19,0.00012899,2]
[338986642,1727101833230,-500.0,0.00012899,2]
[338986643,1727101833239,-500.0,0.00012899,2]
[338986644,1727101833248,-500.0,0.00012899,2]
[338986645,1727101833257,-500.0,0.00012899,2]
[338986646,1727101833267,-500.0,0.00012899,2]
[338986647,1727101833277,-500.0,0.00012899,2]
[338986648,1727101833286,-500.0,0.00012899,2]
[338986649,1727101833296,-500.0,0.00012899,2]
[338986650,1727101833305,-500.0,0.00012899,2]
[338986651,1727101833314,-500.0,0.00012899,2]
[338986652,1727101833323,-498.0,0.00012899,2]
[338986653,1727101833332,-500.0,0.00012899,2]
[338986654,1727101833341,-500.0,0.00012899,2]
[338986655,1727101833350,-500.0,0.00012899,2]
[338986656,1727101833360,-500.0,0.00012899,2]
[338986657,1727101833369,-500.0,0.00012899,2]
[338986658,1727101833378,-237.37105792,0.00012899,2]
[338986659,1727101833388,-77752.961169,0.000129,2]
[338986660,1727101833400,-32487.36089944,0.000129,2]
[338986661,1727101833411,-7874.3179034,0.000129,2]
[338986662,1727101838999,-9975.26162476,0.000129,2]
[338986663,1727101839013,-13157.2710806,0.000129,2]
[338986664,1727101839063,-500.0,0.00012899,2]
[338986665,1727101839073,-2204.63123454,0.000129,2]
[338986666,1727101839084,-380.89748365,0.000129,2]
[338986667,1727101839105,-13346.76716289,0.000129,2]
[338986668,1727101839116,-467.14661128,0.000129,2]
[338986669,1727101839127,-15059.15407455,0.000129,2]
[338986670,1727101839138,-23333.39692139,0.000129,2]
[338986671,1727101839149,-1290.25555417,0.000129,2]
[338986672,1727101839160,-380.63315512,0.000129,2]
[338986674,1727101839784,-408.0085986,0.00012349,2]
[338986675,1727101839795,-1076.7,0.00012349,2]
[338986676,1727101839807,-1154.54016205,0.00012349,2]
[338986677,1727101839818,-930.51620209,0.00012349,2]
[338986678,1727101839830,-1479.70519963,0.00012349,2]
[338986679,1727101839839,-500.0,0.00012899,2]
[338986680,1727101839848,-3828.62470023,0.000129,2]
[338986681,1727101839934,-36167.82712698,0.000129,2]
[338986683,1727101839945,-4617.91216045,0.000129,2]
[338986686,1727101839958,-2353.1427885,0.000129,2]
[338986700,1727101840085,-618.77932963,0.000129,2]
[338986702,1727101840096,-2080.25724065,0.000129,2]
[338986859,1727101843167,-2500.0,0.000128,2]
[338986860,1727101843177,-2228.84,0.00012899,2]
[338986861,1727101843186,-56901.38372265,0.000129,2]
[338986907,1727101846074,-670.7889,0.000129,2]
[338986908,1727101846085,-3403.827162,0.000129,2]
[338987048,1727101912771,500.0,9.724e-05,2]
[338987049,1727101919521,500.0,9.724e-05,2]
[338987050,1727101921156,500.0,0.00011094,2]
[338987051,1727101953778,152.76,9.589e-05,2]
[338987052,1727102155949,-347.0928266,0.00011214,2]
[338987053,1727102155974,-308.49568939,0.000113,2]
[338987054,1727102246166,-150.0,0.00011314,2]
[338987055,1727102246190,-481.41148401,0.00011314,2]
[338987056,1727102349798,1102.9373244,0.0001,2]
[338987057,1727102359851,366.03,0.00010085,2]
[338987059,1727102549361,152.76,9.589e-05,2]
[338987267,1727102912301,347.72,9.575e-05,2]
[338987297,1727103032068,-182.0,0.00011137,2]
[338987298,1727103032078,-347.0928266,0.00011214,2]
[338987299,1727103032088,-169.8,0.00011314,2]
[338987300,1727103032098,-250.0,0.00011415,2]
[338987301,1727103032107,-250.0,0.0001147,2]
[338987302,1727103032117,-182.0,0.00011485,2]
[338987303,1727103032126,-182.0,0.00011485,2]
[338987304,1727103032135,-182.0,0.00011485,2]
[338987305,1727103032145,-4590.1071734,0.00011495,2]
[338987306,1727103032156,-535.511,0.00011495,2]
[338987307,1727103032168,-587.0,0.00011495,2]
[338987308,1727103032179,-18177.3818266,0.00011495,2]
[338987309,1727103032189,-500.0,0.00011498,2]
[338987310,1727103032198,-159.45482597,0.00011688,2]
[338987311,1727103032209,-153.41075135,0.00011688,2]
[338987312,1727103032219,-154.26787625,0.00011688,2]
[338987313,1727103032228,-167.74,0.00011693,2]
[338987314,1727103032238,-747.59,0.00011755,2]
[338987315,1727103032248,-406.38,0.0001176,2]
[338987316,1727103032257,-250.0,0.00011779,2]
[338987317,1727103032267,-150.0,0.00011781,2]
[338987318,1727103032276,-150.99,0.00011781,2]
[338987319,1727103032286,-760.62,0.00011799,2]
[338987320,1727103032296,-150.0,0.00011805,2]
[338987321,1727103032308,-1000.0,0.00011829,2]
[338987322,1727103032317,-347.72,0.00011839,2]
[338987323,1727103032326,-158.13,0.00012003,2]
[338987324,1727103032336,-500.0,0.00012464,2]
[338987325,1727103032346,-500.0,0.00012464,2]
[338987326,1727103032355,-449.236586,0.00012474,2]
[338987327,1727103032364,-161.130254,0.00012474,2]
[338987328,1727103032374,-240.33174,0.00012474,2]
[338987329,1727103032384,-449.236586,0.0001263,2]
[338987330,1727103032394,-240.33174,0.0001263,2]
[338987331,1727103032403,-1104.45056437,0.00012642,2]
[338987332,1727103032412,-242.41,0.00012671,2]
[338987333,1727103032422,-150.99,0.00012671,2]
[338987334,1727103032431,-150.0,0.00012699,2]
[338987335,1727103032440,-1000.0,0.000127,2]
[338987336,1727103032452,-151.16962534,0.00012705,2]
[338987337,1727103032461,-155.58977243,0.00012705,2]
[338987338,1727103032470,-449.236586,0.00012786,2]
[338987339,1727103032479,-240.33174,0.00012786,2]
[338987340,1727103032488,-2896.83900672,0.00012789,2]
[338987341,1727103032498,-762.4338549,0.00012789,2]
[338987342,1727103032507,-216.94,0.00012795,2]
[338987343,1727103032516,-168.75603804,0.00012795,2]
[338987344,1727103032525,-168.75603804,0.00012795,2]
[338987345,1727103032535,-150.0,0.00012799,2]
[338987346,1727103032545,-315.7135,0.00012799,2]
[338987347,1727103032555,-749.5887,0.00012799,2]
[338987348,1727103032564,-464.84238799,0.000128,2]
[338987349,1727103032576,-377.39865896,0.000128,2]
[338987350,1727103032587,-600.0,0.000128,2]
[338987351,1727103032597,-1096.73776496,0.000128,2]
[338987352,1727103032608,-1238.04,0.000128,2]
[338987353,1727103032619,-160220.63418119,0.000128,2]
[338987354,1727103032631,-869.18838291,0.000128,2]
[338987355,1727103032642,-2599.99999999,0.000128,2]
[338987356,1727103032654,-741.75223504,0.000128,2]
[338987357,1727103032665,-984.09450233,0.000128,2]
[338987358,1727103032688,-30237.62718663,0.000128,2]
[338987359,1727103032697,-5858.71046602,0.000128,2]
[338987360,1727103032708,-2303.11487481,0.000128,8]
[338987361,1727103032718,-188508.23443446,0.00012804,2]
[338987362,1727103039368,-12504.31307594,0.00012804,2]
[338987363,1727103039383,-1851.28133172,0.00012804,2]
[338987364,1727103039398,-901.71984,0.00012804,2]
[338987365,1727103039411,-1772.88686984,0.00012804,2]
[338987366,1727103039424,-2440.67190885,0.00012804,2]
[338987367,1727103039436,-650597.46561252,0.00012804,2]
[338987377,1727103040097,-3961.70764761,0.00012804,2]
[338987378,1727103040221,-581.98666328,0.00012804,2]
[338987379,1727103040240,-351.02300115,0.00012804,2]
[338987380,1727103040252,-25221.2618869,0.00012804,2]
[338987381,1727103040265,-33740.1538901,0.00012804,2]
[338987382,1727103040278,-3902.88560498,0.00012804,2]
[338987383,1727103040292,-17230.93025997,0.00012804,2]
[338987384,1727103040309,-155780.44576969,0.00012804,2]
[338987385,1727103040319,-160.19110124,0.00012805,2]
[338987386,1727103040330,-4692.91589132,0.00012805,2]
[338987387,1727103040342,-70626.03825443,0.00012805,2]
[338987395,1727103040416,-5887.43975,0.00012805,2]
[338987400,1727103040463,-2551.14436088,0.00012805,2]
[338987402,1727103040476,-48581.4,0.00012805,2]
[338987405,1727103040489,-336140.03454048,0.00012805,2]
[338987407,1727103040500,-2896.83900672,0.00012811,2]
[338987408,1727103040510,-2896.83900672,0.00012833,2]
[338987409,1727103040521,-2896.83900672,0.00012856,2]
[338987410,1727103040532,-571.0,0.00012867,2]
[338987411,1727103040543,-501.23879161,0.00012873,2]
[338987412,1727103040554,-500.0,0.00012873,2]
[338987413,1727103040565,-500.0,0.00012875,2]
[338987414,1727103040576,-429.59550453,0.00012875,2]
[338987416,1727103040586,-500.0,0.00012876,2]
[338987418,1727103040597,-500.0,0.00012876,2]
[338987420,1727103040608,-342.84,0.00012876,2]
[338987422,1727103040619,-500.0,0.00012876,2]
[338987424,1727103040630,-500.0,0.00012876,2]
[338987426,1727103040640,-500.0,0.00012876,2]
[338987428,1727103040651,-571.58,0.00012876,2]
[338987430,1727103040662,-571.58,0.00012876,2]
[338987433,1727103040674,-571.58,0.00012876,2]
[338987435,1727103040685,-500.0,0.00012876,2]
[338987437,1727103040696,-500.0,0.00012876,2]
[338987439,1727103040713,-500.0,0.00012876,2]
[338987441,1727103040725,-500.0,0.00012876,2]
[338987444,1727103040737,-500.0,0.00012876,2]
[338987446,1727103040747,-1171.7,0.00012876,2]
[338987448,1727103040758,-500.0,0.00012876,2]
[338987450,1727103040769,-320.31393973,0.00012876,2]
[338987452,1727103040780,-17719.88,0.00012876,2]
[338987454,1727103040791,-330.87,0.00012876,2]
[338987456,1727103040802,-500.0,0.00012876,2]
[338987459,1727103040813,-500.0,0.00012876,2]
[338987461,1727103040824,-500.0,0.00012876,2]
[338987463,1727103040835,-799.47,0.00012876,2]
[338987465,1727103040845,-799.47,0.00012876,2]
[338987467,1727103040856,-799.47,0.00012876,2]
[338987469,1727103040867,-799.47,0.00012876,2]
[338987472,1727103040878,-799.47,0.00012876,2]
[338987474,1727103040889,-799.47,0.00012876,2]
[338987476,1727103040900,-799.47,0.00012876,2]
[338987478,1727103040911,-500.0,0.00012876,2]
[338987480,1727103040922,-870.34,0.00012876,2]
[338987482,1727103040933,-870.34,0.00012876,2]
[338987484,1727103040944,-870.34,0.00012876,2]
[338987487,1727103040956,-870.34,0.00012876,2]
[338987489,1727103040968,-870.34,0.00012876,2]
[338987491,1727103040979,-870.34,0.00012876,2]
[338987493,1727103040991,-870.34,0.00012876,2]
[338987495,1727103041001,-619.46,0.00012876,2]
[338987497,1727103041014,-500.0,0.00012876,2]
[338987499,1727103041024,-263.18,0.00012876,2]
[338987502,1727103041035,-500.0,0.00012876,2]
[338987504,1727103041046,-500.0,0.00012876,2]
[338987506,1727103041057,-500.0,0.00012876,2]
[338987508,1727103041067,-500.0,0.00012876,2]
[338987510,1727103041077,-557.21,0.00012876,2]
[338987512,1727103041088,-500.0,0.00012876,2]
[338987514,1727103041099,-500.0,0.00012876,2]
[338987516,1727103041109,-500.0,0.00012876,2]
[338987518,1727103041119,-2896.83900672,0.00012878,2]
[338987520,1727103041130,-500.0,0.00012896,2]
[338987523,1727103041140,-799.47,0.00012897,2]
[338987525,1727103041151,-870.34,0.00012897,2]
[338987527,1727103041161,-500.0,0.00012897,2]
[338987529,1727103041171,-500.0,0.00012898,2]
[338987531,1727103041181,-500.0,0.00012898,2]
[338987533,1727103041192,-485.58453716,0.00012898,2]
[338987535,1727103041202,-500.0,0.00012898,2]
[338987537,1727103041216,-257.94644087,0.00012898,2]
[338987539,1727103041227,-342.84,0.00012898,2]
[338987542,1727103041240,-342.84,0.00012898,2]
[338987543,1727103041251,-342.84,0.00012898,2]
[338987544,1727103041261,-342.84,0.00012898,2]
[338987545,1727103041272,-342.84,0.00012898,2]
[338987546,1727103041282,-342.84,0.00012898,2]
[338987547,1727103041293,-500.0,0.00012898,2]
[338987548,1727103041305,-500.0,0.00012898,2]
[338987549,1727103041316,-500.0,0.00012898,2]
[338987550,1727103041326,-500.0,0.00012898,2]
[338987552,1727103041337,-500.0,0.00012898,2]
[338987553,1727103041347,-571.58,0.00012898,2]
[338987555,1727103041358,-571.58,0.00012898,2]
[338987557,1727103041368,-571.58,0.00012898,2]
[338987559,1727103041379,-571.58,0.00012898,2]
[338987561,1727103041389,-571.58,0.00012898,2]
[338987563,1727103041399,-500.0,0.00012898,2]
[338987565,1727103041410,-491.9215372,0.00012898,2]
[338987567,1727103041420,-500.0,0.00012898,2]
[338987570,1727103041431,-500.0,0.00012898,2]
[338987572,1727103041442,-500.0,0.00012898,2]
[338987574,1727103041452,-500.0,0.00012898,2]
[338987576,1727103041465,-500.0,0.00012898,2]
[338987578,1727103041475,-500.0,0.00012898,2]
[338987580,1727103041486,-500.0,0.00012898,2]
[338987582,1727103041496,-500.0,0.00012898,2]
[338987584,1727103041507,-500.0,0.00012898,2]
[338987586,1727103041518,-500.0,0.00012898,2]
[338987588,1727103041529,-639.00000001,0.00012898,2]
[338987590,1727103041539,-500.0,0.00012898,2]
[338987591,1727103041549,-500.0,0.00012898,2]
[338987592,1727103041560,-1171.7,0.00012898,2]
[338987593,1727103041570,-1171.7,0.00012898,2]